[Event "Czech Open Rapid G1 2024"]
[Site "Pardubice"]
[Date "2024.07.18"]
[Round "4.9"]
[White "Kusa, Jakub"]
[Black "Shilon Rahav, Eliran"]
[Result "1-0"]
[Annotator "TA"]
[ECO "D31"]
[WhiteElo "2423"]
[BlackElo "2055"]
[PlyCount "75"]
[EventDate "2024.07.16"]
[EventType "swiss"]
[EventCountry "CZE"]
[SourceTitle "playchess.com"]
[Source "ChessBase"]
[SourceQuality "1"]
[TimeControl "1200+10"]

{[%evp 16,75,0,0,25,-31,0,0,25,36,31,40,31,37,39,43,37,-61,-53,-74,-78,-61,-70,-76,-80,-101,-48,-117,-83,-79,0,0,0,-97,-98,-93,109,100,214,212,204,204,363,268,357,357,327,319,437,437,448,444,415,342,531,528,509,498,678,668,668,657]} 1. d4 {[%emt 0:00:05]} d5 {[%emt 0:00:03]} 2. c4 {[%emt 0:00:03]} e6 {[%emt 0:00:02]} 3. Nc3 {[%emt 0:00:03]} c6 {[%emt 0:00:04]} 4. e4 {[%emt 0:00:04]} dxe4 {[%emt 0:00:02]} 5. Nxe4 {[%emt 0:00:02]} Bb4+ {[%emt 0:00:01]} 6. Bd2 {[%emt 0:00:02]} Qxd4 {[%emt 0:00:06]} 7. Bxb4 {[%emt 0:00:05]} Qxe4+ {[%emt 0:00:03]} 8. Be2 {[%emt 0:00:08]} Na6 {[%emt 0:00:04]} 9. Ba5 {[%emt 0:00:15][%csl Ga5][%cal Rd1d8] [#]} f6 {[%emt 0:00:12][%cal Ob7b6]} 10. Qd8+ {[%emt 0:01:40]} Kf7 {[%emt 0:00:03][%cal Ob7b6]} 11. Rd1 {[%emt 0:01:55]} Qxg2 {[%emt 0:07:42] The position is equal.} 12. Bf3 {[%emt 0:00:44]} (12. Bh5+ g6 13. Bf3 Qg5 $14) 12... Qg5 {[%emt 0:00:25]} 13. Ne2 $1 {[%emt 0:02:08][%mdl 1024] [#] aiming for Ng3. White has compensation.} Qf5 {[%emt 0:01:59]} 14. Bg2 {[%emt 0:01:33]} b6 {[%emt 0:05:37]} 15. Bc3 {[%emt 0:01:34][%cal Oe2g3]} (15. Bxc6 $2 Ne7 (15... Qxa5+ $2 16. Kf1 $19) 16. Qd6 Rd8 (16... Qxa5+ $2 17. b4 $19) (16... Nxc6 17. Qxc6 Rb8 18. Bc3 $17) 17. Qxd8 Qxa5+ (17... Nxc6 $2 18. Qd6 $19) 18. Kf1 Nxc6 $19) 15... Bb7 {[%emt 0:00:20]} 16. Qd7+ {[%emt 0:02:26]} ({Better is} 16. Qd6 $14 Nc5 17. Rg1) 16... Ne7 $15 {[%emt 0:00:02][%cal Oa8d8] White must now prevent ...Rad8!} 17. Qxb7 {[%emt 0:04:00]} Nc5 {[%emt 0:00:08]} 18. Qc7 {[%emt 0:00:01][%cal Oc3b4]} Nd3+ {[%emt 0:00:04]} 19. Rxd3 $1 {[%emt 0:00:36]} Qxd3 {[%emt 0:00:02]} 20. Qg3 {[%emt 0:03:28]} (20. Bxc6 $2 Rhd8 (20... Qxc4 $2 21. Be8+ Rhxe8 22. Qxc4 $18) (20... Rac8 21. Qd7 $17) 21. O-O Rac8 (21... Qxe2 22. Bb4 $15) (21... Qxc4 $2 22. Be8+ Rxe8 23. Qxc4 $18) 22. Qxa7 Rxc6 $19) 20... Qxc4 {[%emt 0:01:45]} (20... Qb1+ $17 21. Kd2 Rad8+ 22. Nd4 Qxa2) 21. Qf3 {[%emt 0:02:00]} (21. Rg1 $15) 21... Rhd8 {[%emt 0:01:32][%cal Oc4d5]} 22. O-O {[%emt 0:00:01]} Qxa2 {[%emt 0:00:30]} (22... Kg8 $17) 23. Nf4 $36 {[%emt 0:00:52][%mdl 2048] Bh3 would now be deadly. White is more active.} Qc4 {[%emt 0:01:35]} 24. Bh3 {[%emt 0:00:08]} (24. Re1 $1 $11 Rd6 25. Qh5+ Kg8 26. Be4) 24... Rd6 $17 {[%emt 0:01:29]} 25. Re1 {[%emt 0:00:03]} Nf5 $2 {[%emt 0:00:16]} (25... e5 $17 {keeps the pressure on.} 26. Qh5+ Ng6) 26. Qh5+ {[%emt 0:00:21]} Kg8 {[%emt 0:00:00]} (26... Kf8 $16 27. Qg4 Kg8) 27. Bxf5 $18 {[%emt 0:00:01][%cal Oc3f6] White wants to mate with Bxf6!} Qxf4 {[%emt 0:00:19]} 28. Bxe6+ {[%emt 0:00:09] This pair of bishops is nice.} (28. Qxh7+ Kf8 29. Qh8+ (29. Rxe6 Rxe6 30. Bxe6 Ke7 $11) 29... Kf7 30. Qh5+ (30. Qxa8 Qxf5 31. Qxa7+ Kg6 $16) 30... Ke7) 28... Kh8 $2 {[%emt 0:00:12]} (28... Rxe6 {keeps fighting.} 29. Rxe6 Kf8 30. Rxc6 Re8) 29. Bf5 {[%emt 0:00:04][%csl Gf5][%cal Rh5h7]} Qg5+ {[%emt 0:00:08]} 30. Qxg5 {[%emt 0:00:01]} fxg5 {[%emt 0:00:00]} 31. Re7 {[%emt 0:00:04]} Rg8 {[%emt 0:00:22]} 32. Be6 {[%emt 0:00:20]} ({Don't take} 32. Rxa7 c5 33. Rb7 Rc6) 32... Rxe6 {[%emt 0:00:02]} 33. Rxe6 {[%emt 0:00:00] KRB-KR} c5 {[%emt 0:00:06]} 34. Re7 {[%emt 0:00:01]} a5 {[%emt 0:00:01]} (34... b5 $142 35. Rc7 (35. Rxa7 h6 $18) 35... b4) 35. Rb7 {[%emt 0:00:02] White is clearly winning.} h6 {[%emt 0:00:32]} 36. Rxb6 {[%emt 0:00:01][%cal Rb6h6]} Ra8 {[%emt 0:00:02]} 37. Rxh6+ {[%emt 0:00:03]} Kg8 {[%emt 0:00:01]} 38. Rg6 {[%emt 0:00:03][%csl LRg5,LRg7] Weighted Error Value: White=0.25 (precise) /Black=0.51.  Mistake:       	White=3     	Black=6      Inaccurate:     	---       	Black=4      OK:         	White=13    	Black=8      Best:        	White=2     	Black=3      Strong:       	White=2     	---} 1-0

[Event "Czech Open Rapid G1 2024"]
[Site "Pardubice"]
[Date "2024.07.18"]
[Round "4.10"]
[White "Lalic, Bogdan"]
[Black "Sherman, Raem"]
[Result "1/2-1/2"]
[Annotator "RC"]
[ECO "D35"]
[WhiteElo "2348"]
[BlackElo "2358"]
[PlyCount "105"]
[EventDate "2024.07.16"]
[EventType "swiss"]
[EventCountry "CZE"]
[SourceTitle "playchess.com"]
[Source "ChessBase"]
[SourceQuality "1"]
[TimeControl "1200+10"]

1. d4 {[%emt 0:00:03]} Nf6 {[%emt 0:00:31]} 2. c4 {[%emt 0:00:07]} e6 {[%emt 0:00:02]} 3. Nc3 {[%emt 0:00:07]} d5 {[%emt 0:00:03]} 4. cxd5 {[%emt 0:00:12]} exd5 {[%emt 0:00:02]} 5. Bg5 {[%emt 0:00:09]} Be7 {[%emt 0:00:03]} 6. e3 {[%emt 0:00:05]} h6 {[%emt 0:00:02]} 7. Bh4 {[%emt 0:00:05]} Bg4 {[%emt 0:00:03]} 8. Qb3 {[%emt 0:00:37]} Nbd7 {[%emt 0:00:01]} 9. Bxf6 {[%emt 0:01:35]} Nxf6 {[%emt 0:00:13]} 10. Qxb7 {[%emt 0:00:04]} O-O {[%emt 0:01:56]} 11. Qb3 {[%emt 0:00:04]} c5 {[%emt 0:00:46]} 12. Be2 {[%emt 0:00:31]} cxd4 {[%emt 0:02:15]} 13. exd4 {[%emt 0:00:05]} Bf5 {[%emt 0:00:11]} 14. Qd1 {[%emt 0:02:53]} Qb6 {[%emt 0:01:02]} 15. Bd3 {[%emt 0:02:37]} Qxb2 {[%emt 0:01:36]} 16. Bxf5 {[%emt 0:00:02]} Qxc3+ {[%emt 0:00:48]} 17. Kf1 {[%emt 0:00:01]} Ne4 {[%emt 0:00:36]} 18. Ne2 {[%emt 0:00:28]} Qa5 {[%emt 0:00:10]} 19. Qd3 {[%emt 0:02:00]} Nd6 {[%emt 0:01:12]} 20. g3 {[%emt 0:00:55]} Rab8 {[%emt 0:00:47]} 21. Kg2 {[%emt 0:00:04]} Rb2 {[%emt 0:00:15]} 22. Bg4 {[%emt 0:01:04]} Ne4 {[%emt 0:01:26]} 23. Rhf1 {[%emt 0:01:03]} Bf6 {[%emt 0:01:49]} 24. Bf3 {[%emt 0:01:30]} Re8 {[%emt 0:00:32]} 25. Rfd1 {[%emt 0:02:31]} g6 {[%emt 0:01:09]} 26. h4 {[%emt 0:00:25]} h5 {[%emt 0:00:24]} 27. a4 {[%emt 0:00:44]} Kg7 {[%emt 0:01:09]} 28. Rab1 {[%emt 0:00:22]} Rxb1 {[%emt 0:00:41]} 29. Rxb1 {[%emt 0:00:02]} Qxa4 {[%emt 0:00:15]} 30. Qb5 {[%emt 0:00:15]} Qxb5 {[%emt 0:00:58]} 31. Rxb5 {[%emt 0:00:01]} Rd8 {[%emt 0:00:01]} 32. Rb7 {[%emt 0:00:07]} a6 {[%emt 0:00:17]} 33. Nf4 {[%emt 0:00:24]} Re8 {[%emt 0:01:25]} 34. Rb4 {[%emt 0:01:17]} a5 {[%emt 0:01:35]} 35. Ra4 {[%emt 0:00:11]} Bd8 {[%emt 0:00:25]} 36. Nxd5 {[%emt 0:00:02]} Nd2 {[%emt 0:00:05]} 37. Ne3 {[%emt 0:00:14]} Re6 {[%emt 0:00:22]} 38. Bd5 {[%emt 0:00:31]} Rd6 {[%emt 0:00:14]} 39. Ra2 {[%emt 0:00:12]} Nb1 {[%emt 0:00:04]} 40. Rc2 {[%emt 0:00:28]} Na3 {[%emt 0:00:12]} 41. Rb2 {[%emt 0:00:38]} Rd7 {[%emt 0:00:30]} 42. Ba2 {[%emt 0:00:34]} a4 {[%emt 0:00:28]} 43. d5 {[%emt 0:00:26]} Be7 {[%emt 0:00:04]} 44. Rb6 {[%emt 0:00:27]} Bc5 {[%emt 0:00:30]} 45. Ra6 {[%emt 0:00:00]} Ra7 {[%emt 0:00:04]} 46. Rxa7 {[%emt 0:00:04]} Bxa7 {[%emt 0:00:02]} 47. d6 {[%emt 0:00:03]} Bb6 {[%emt 0:00:09]} 48. Nd5 {[%emt 0:00:08]} Bd8 {[%emt 0:00:02]} 49. Nc3 {[%emt 0:00:05]} Kf8 {[%emt 0:00:13]} 50. Nxa4 {[%emt 0:00:05]} Nb5 {[%emt 0:00:01]} 51. d7 {[%emt 0:00:07]} Ke7 {[%emt 0:00:02]} 52. Nc5 {[%emt 0:00:10]} Nd6 {[%emt 0:00:02]} 53. Bd5 {[%emt 0:00:07]} 1/2-1/2

[Event "Czech Open Rapid G1 2024"]
[Site "Pardubice"]
[Date "2024.07.18"]
[Round "4.11"]
[White "Ocelak, Jakub"]
[Black "Rasik, Vitezslav"]
[Result "0-1"]
[Annotator "TA"]
[ECO "E62"]
[WhiteElo "2206"]
[BlackElo "2415"]
[PlyCount "128"]
[EventDate "2024.07.16"]
[EventType "swiss"]
[EventCountry "CZE"]
[SourceTitle "playchess.com"]
[Source "ChessBase"]
[SourceQuality "1"]
[TimeControl "1200+10"]

{[%evp 42,128,36,34,38,40,51,57,73,70,91,90,99,91,91,41,40,10,32,-104,-50,-73,-70,-194,-168,-316,-324,-319,-175,-402,-408,-500,-499,-824,-817,-978,-972,-928,-343,-339,-337,-321,-307,-305,-319,-301,-278,-397,-320,-481,-456,-464,-462,-452,-452,-543,-288,-1497,-1434,-775,-272,-1690,-1698,-1366,-549,-2699,-2672,-3071,-3102,-3797,-2804,-29978,-29978,-29981,-29982,-29984,-29985,-29985,-29983,-29983,-29984,-29984,-29985,-29985,-29986,-29986,-29987,-29987,-29988]} 1. d4 {[%emt 0:02:37]} d6 {[%emt 0:00:05]} 2. c4 {[%emt 0:00:03]} g6 {[%emt 0:00:07]} 3. Nc3 {[%emt 0:00:16]} Bg7 {[%emt 0:00:03]} 4. Nf3 {[%emt 0:00:03]} Nf6 {[%emt 0:00:03]} 5. g3 {[%emt 0:00:02]} O-O {[%emt 0:00:11]} 6. Bg2 {[%emt 0:00:02]} Nc6 {[%emt 0:00:12]} 7. O-O {[%emt 0:00:03]} Bf5 {[%emt 0:00:16] 7...e5 gains popularity.} 8. d5 {[%emt 0:00:03]} Na5 {[%emt 0:00:04]} 9. b3 {[%emt 0:00:02] E62: King's Indian: Fianchetto: 6...c6 and Panno Variation (6...Nc6) without ...a6.} c5 {[%emt 0:00:53]} 10. Bd2 {[%emt 0:02:52]} a6 {[%emt 0:00:25]} 11. Qe1 {[%emt 0:00:15]} Bd7 $146 {[%emt 0:01:03]} ({Predecessor:} 11... b5 12. e4 Bg4 13. cxb5 axb5 14. Nxb5 Nxd5 15. Rc1 Bd7 16. Nxd6 exd6 17. exd5 Bb5 {0-1 Martirosyan,H (2633)-Fedoseev,V (2704) Chess.com Rapid Wk2 Swiss 2022 (8)}) 12. e4 {[%emt 0:01:53]} e5 {[%emt 0:01:11]} 13. dxe6 {[%emt 0:00:54]} Bxe6 {[%emt 0:01:49]} 14. h3 {[%emt 0:00:05]} Nc6 {[%emt 0:00:16]} 15. Rd1 {[%emt 0:00:12]} Qc7 {[%emt 0:01:44]} 16. Bf4 {[%emt 0:01:40]} Rad8 {[%emt 0:00:08]} 17. Nd5 {[%emt 0:00:53]} Bxd5 {[%emt 0:01:20]} 18. cxd5 {[%emt 0:00:05]} Nb8 {[%emt 0:01:45]} 19. Nd2 {[%emt 0:00:58]} Rfe8 {[%emt 0:00:56]} 20. Be3 {[%emt 0:00:02]} b5 {[%emt 0:00:27]} 21. Qe2 {[%emt 0:00:17]} Nbd7 {[%emt 0:00:33]} 22. a4 {[%emt 0:00:45]} Rb8 {[%emt 0:01:36]} 23. Ra1 {[%emt 0:01:02]} Qb7 {[%emt 0:01:10]} 24. Ra2 {[%emt 0:00:28]} Rec8 {[%emt 0:01:06]} 25. Rc1 {[%emt 0:00:12]} Rc7 {[%emt 0:00:52]} 26. Kh2 {[%emt 0:00:43]} Ne8 {[%emt 0:00:28]} 27. f4 {[%emt 0:01:09]} Rcc8 {[%emt 0:00:26] [#]} 28. e5 {[%emt 0:01:28]} (28. Qd3 $1 $16) 28... dxe5 {[%emt 0:00:19]} 29. fxe5 {[%emt 0:00:03]} Bxe5 {[%emt 0:00:15]} 30. Ne4 {[%emt 0:00:30]} (30. b4 $14 {stays ahead.} Bd6 31. axb5 Qxb5 32. Qxb5 Rxb5 (32... axb5 33. Ra7 $16) 33. bxc5 Nxc5 34. Bf1) 30... Nd6 {[%emt 0:01:31]} (30... Qxd5 $2 31. Nf6+ Nexf6 32. Bxd5 Nxd5 33. Rd2 $16) ({Better is} 30... bxa4 $1 $17 31. Rxa4 Qxb3 (31... Qxd5 32. Nf6+ Nexf6 33. Bxd5 $16) 32. Rxa6 Nef6 (32... Qxd5 33. Nd2 $16)) 31. Nxc5 $15 {[%emt 0:00:43]} Nxc5 {[%emt 0:00:04]} 32. Rxc5 {[%emt 0:00:02]} (32. Bxc5 $15 Re8 33. Qf3) 32... Re8 {[%emt 0:00:36]} 33. Qf3 {[%emt 0:00:46]} (33. Qf2 $142 bxa4 34. bxa4) 33... bxa4 $19 {[%emt 0:00:35]} 34. bxa4 {[%emt 0:00:35]} Qb3 {[%emt 0:00:10]} (34... Ne4 $142 35. Rc1 (35. Qxe4 $2 Bxg3+ 36. Kxg3 Rxe4 $19) 35... Qb3 (35... Qxd5 $2 36. Rac2 $19) (35... Nxg3 $2 36. Kg1 $19)) 35. Re2 $2 {[%emt 0:00:24] [#]} (35. Rf2) 35... Nf5 $1 $19 {[%emt 0:01:01]} (35... Qxa4 36. Bf4 Bxf4 37. Rxe8+ Nxe8 (37... Rxe8 38. Qxf4 Qxf4 39. gxf4 $11) 38. Qxf4 Qxf4 39. gxf4 $11) 36. Bf2 {[%emt 0:01:47]} Bxg3+ {[%emt 0:00:48]} (36... Qxa4 $2 37. Qd3 Bd6 (37... Rb3 $2 38. Qd1 $19) 38. Rxe8+ Qxe8 (38... Rxe8 39. Rc4 $17) 39. Rc6 $19) 37. Bxg3 {[%emt 0:00:48]} (37. Kg1 $142 Rxe2 38. Qxe2) 37... Rxe2 $19 {[%emt 0:00:03]} 38. Rc8+ {[%emt 0:01:05]} Kg7 {[%emt 0:00:04]} 39. Rc3 {[%emt 0:00:02] [#]} Rxg2+ $2 {[%emt 0:01:09]} (39... Qxa4 $2 40. Qxe2 Re8 41. Qd2 $18) (39... Qb2 $1 {( -> ...Nxg3)} 40. Qxe2 Qxe2 41. Bxb8 Ne3 42. Rxe3 Qxe3) 40. Qxg2 $19 {[%emt 0:00:10]} Qxc3 {[%emt 0:00:13]} 41. Bxb8 {[%emt 0:00:03]} Ne3 {[%emt 0:00:12]} 42. Qe2 {[%emt 0:00:33]} Qc2 {[%emt 0:00:21]} (42... Nxd5 $2 {perishes.} 43. Be5+ $18 (43. Qxa6 $2 Qb2+ 44. Kg1 Qxb8 $19) (43. Qxa6 $2 Qb2+ 44. Kg1 Qxb8 $19)) 43. Qxc2 Nxc2 {[%emt 0:00:01]} 44. Kg3 {[%emt 0:00:29]} (44. Be5+ $142 Kf8 45. Bd6+ Ke8 46. Bc5) 44... Ne3 {[%emt 0:00:23]} 45. d6 {[%emt 0:00:08]} (45. Be5+ {was necessary.} Kf8 (45... f6 46. d6 $17) 46. Kf4 Nxd5+ 47. Ke4) 45... Kf6 $19 {[%emt 0:00:10]} 46. Kf4 {[%emt 0:00:10]} Nf5 {[%emt 0:00:07]} ({Less strong is} 46... Nd5+ 47. Kg4 $19) 47. d7 {[%emt 0:00:23]} Ke7 {[%emt 0:00:02]} 48. Ke5 {[%emt 0:00:07]} Kxd7 {[%emt 0:00:25]} 49. Kd5 $2 {[%emt 0:00:10]} (49. Kf6 Ke8 50. Bf4) 49... Ne7+ $19 {[%emt 0:00:08]} 50. Kc5 {[%emt 0:00:03]} Nc8 $2 {[%emt 0:00:09]} (50... g5 51. Be5 Ke6) 51. a5 $2 {[%emt 0:00:07]} (51. Bf4) 51... g5 $19 {[%emt 0:00:17]} 52. Be5 {[%emt 0:00:05]} h5 {[%emt 0:00:07]} (52... f5 $142 53. Bg7 Ke6) 53. Kd5 {[%emt 0:00:12]} Ne7+ {[%emt 0:00:20]} 54. Kc5 {[%emt 0:00:10]} Nc6 {[%emt 0:00:03]} 55. Bh2 {[%emt 0:00:25]} Nxa5 {[%emt 0:00:02]} 56. Kb6 {[%emt 0:00:02]} Nb3 {[%emt 0:00:02]} 57. Kxa6 {[%emt 0:00:03]} Kc6 {[%emt 0:00:00]} 58. Bb8 {[%emt 0:00:19]} f5 {[%emt 0:00:03]} 59. Bh2 {[%emt 0:00:08]} g4 {[%emt 0:00:02]} 60. hxg4 {[%emt 0:00:06]} hxg4 {[%emt 0:00:04]} 61. Bb8 {[%emt 0:00:04]} Nc1 {[%emt 0:00:34]} 62. Ka5 {[%emt 0:00:01]} Nd3 {[%emt 0:00:00]} 63. Ka4 {[%emt 0:00:11]} f4 {[%emt 0:00:08]} 64. Kb3 {[%emt 0:00:11]} f3 {[%emt 0:00:06]} 0-1

[Event "Czech Open Rapid G1 2024"]
[Site "Pardubice"]
[Date "2024.07.18"]
[Round "4.12"]
[White "Piesik, Piotr"]
[Black "Ptacek, Lubos"]
[Result "1/2-1/2"]
[Annotator "TA"]
[ECO "D02"]
[WhiteElo "2415"]
[BlackElo "2036"]
[PlyCount "118"]
[EventDate "2024.07.16"]
[EventType "swiss"]
[EventCountry "CZE"]
[SourceTitle "playchess.com"]
[Source "ChessBase"]
[SourceQuality "1"]
[TimeControl "1200+10"]

{[%evp 10,118,56,16,57,51,47,58,80,24,37,39,35,35,49,48,87,-15,-15,-15,-13,-15,-12,-22,-15,-13,-11,-4,-19,-18,-24,-29,0,0,0,0,0,0,18,18,24,22,15,20,17,24,18,17,17,17,25,7,7,7,7,7,14,15,95,16,96,96,96,96,95,0,0,0,0,0,0,0,0,0,0,0,0,0,0,0,0,0,0,0,0,0,0,0,0,0,0,0,0,0,0,0,0,0,0,0,0,0,0,0,0,0,0,0,0,0,0]} 1. Nf3 {[%emt 0:01:33]} d5 {[%emt 0:00:02]} 2. g3 {[%emt 0:00:01]} Nf6 {[%emt 0:00:07]} 3. Bg2 {[%emt 0:00:01]} Nc6 {[%emt 0:00:24]} 4. d4 {[%emt 0:00:30]} h6 {[%emt 0:00:19]} 5. c4 {[%emt 0:00:15]} e6 {[%emt 0:00:13]} 6. Nc3 {[%emt 0:00:20] D02: 1 d4 d5 2 Nf3 sidelines, including 2...Nf6 3 g3 and 2...Nf6 3 Bf4.} Be7 {[%emt 0:00:16]} 7. O-O {[%emt 0:00:16]} O-O {[%emt 0:00:03]} 8. b3 {[%emt 0:01:36]} Rb8 $146 {[%emt 0:00:08]} ({Predecessor:} 8... b6 9. cxd5 Nxd5 10. Nxd5 exd5 11. Bf4 Bb7 12. Rc1 Bd6 13. Qd2 Rc8 14. Nh4 Re8 {1-0 Livaic,L (2561)-Collins,A (2189) Titled Tuesday intern op 27th Feb Late blitz 2024 (2)}) 9. Bb2 {[%emt 0:00:17]} (9. Ne5 $16) 9... dxc4 $11 {[%emt 0:00:15]} 10. bxc4 {[%emt 0:00:02]} b6 {[%emt 0:00:42]} 11. Ne5 {[%emt 0:01:32]} Na5 {[%emt 0:02:26]} 12. Nb5 {[%emt 0:01:48]} Nd7 {[%emt 0:01:26]} 13. Nxa7 {[%emt 0:06:21]} (13. Nc6 $1 $16 {[%cal Rc6d8]} Nxc6 14. Bxc6) 13... Nxe5 $11 {[%emt 0:00:23]} 14. dxe5 {[%emt 0:00:01]} Bb7 $1 {[%emt 0:00:12]} 15. Qd3 {[%emt 0:02:53]} Bxg2 16. Kxg2 {[%emt 0:00:01]} c6 {[%emt 0:02:53]} 17. Qxd8 $1 {[%emt 0:00:12]} Rfxd8 {[%emt 0:00:52]} 18. Bc3 {[%emt 0:00:01]} Rd7 {[%emt 0:00:05]} 19. Bxa5 {[%emt 0:00:03]} Rxa7 {[%emt 0:00:02]} 20. Bd2 {[%emt 0:01:41]} Rba8 {[%emt 0:00:02]} 21. Be3 {[%emt 0:00:08]} Rxa2 {[%emt 0:00:18]} 22. Rxa2 {[%emt 0:00:01]} Rxa2 {[%emt 0:00:02]} 23. Rb1 {[%emt 0:00:44]} Rc2 {[%emt 0:01:15]} 24. Rxb6 {[%emt 0:00:06]} Rxc4 {[%emt 0:00:02]} 25. Rb8+ {[%emt 0:00:06]} Kh7 {[%emt 0:00:02]} 26. Rb7 {[%emt 0:00:01]} Bc5 {[%emt 0:00:15]} 27. Bxc5 {[%emt 0:00:53]} Rxc5 {[%emt 0:00:01]} 28. Rxf7 {[%emt 0:00:02]} Rxe5 {[%emt 0:00:07]} 29. e3 {[%emt 0:00:01]} Kg6 {[%emt 0:00:08]} 30. Rc7 {[%emt 0:00:01]} Rc5 $1 {[%emt 0:00:02]} 31. g4 {[%emt 0:00:15]} Kf6 {[%emt 0:00:04]} 32. h4 {[%emt 0:00:04]} Rc1 {[%emt 0:00:35]} 33. f4 {[%emt 0:00:15]} c5 {[%emt 0:01:02] [#]} (33... g5 $11 {remains equal.}) 34. Kf3 {[%emt 0:00:04]} (34. g5+ $1 $16 hxg5 35. hxg5+ Kf5 36. Kf3 (36. Rxg7 Kg4 $11)) 34... Rh1 {[%emt 0:01:10] [#]} (34... g5 $11) 35. g5+ $1 $16 {[%emt 0:01:52]} Kg6 {[%emt 0:00:27]} 36. Re7 {[%emt 0:00:03]} ({Don't take} 36. Rxc5 Rxh4 37. Rc6 hxg5 $11) 36... Rxh4 {[%emt 0:00:11]} 37. gxh6 {[%emt 0:00:12]} (37. Rxe6+ $16 Kf7 38. Re5) 37... Rxh6 $11 {[%emt 0:00:38]} 38. Rxe6+ {[%emt 0:00:26]} Kf7 {[%emt 0:00:01]} 39. Re4 {[%emt 0:00:07]} Rc6 {[%emt 0:00:08]} 40. Rc4 {[%emt 0:00:00]} Ke6 {[%emt 0:00:01]} 41. e4 {[%emt 0:00:01]} Kd6 {[%emt 0:00:02]} 42. Kg4 {[%emt 0:00:18]} Ke6 {[%emt 0:00:29]} 43. Kg5 {[%emt 0:00:05]} Rc7 {[%emt 0:00:12]} 44. Kg6 {[%emt 0:00:08]} Kd6 {[%emt 0:00:15]} 45. Kf5 {[%emt 0:00:31]} Rf7+ {[%emt 0:00:05]} 46. Kg5 {[%emt 0:00:02]} Rc7 {[%emt 0:00:01]} 47. Kg6 {[%emt 0:00:32]} Ke6 {[%emt 0:00:03]} 48. Ra4 {[%emt 0:01:19]} c4 {[%emt 0:00:20]} 49. Ra6+ {[%emt 0:00:01]} Ke7 {[%emt 0:00:09]} 50. Kxg7 {[%emt 0:00:10]} c3 {[%emt 0:00:00]} 51. Ra1 $1 {[%emt 0:00:01]} Rc4 {[%emt 0:00:11]} (51... c2 $5 52. Rc1 $8 Rc6 $11) 52. f5 {[%emt 0:00:33]} Rxe4 {[%emt 0:00:02]} 53. f6+ {[%emt 0:00:15]} Ke6 {[%emt 0:00:01]} 54. Ra6+ {[%emt 0:00:03]} Ke5 {[%emt 0:00:13]} 55. Rc6 {[%emt 0:00:21]} (55. f7 $5 Rg4+ $8 56. Kh6 $11) 55... Rg4+ {[%emt 0:00:06]} 56. Kf8 {[%emt 0:00:07]} Rf4 {[%emt 0:00:52]} 57. f7 {[%emt 0:00:02]} Kd4 {[%emt 0:00:16]} 58. Ke7 {[%emt 0:00:01]} Rxf7+ {[%emt 0:00:04]} 59. Kxf7 {[%emt 0:00:02]} Kd3 {[%emt 0:00:01]} 1/2-1/2

[Event "Czech Open Rapid G1 2024"]
[Site "Pardubice"]
[Date "2024.07.18"]
[Round "4.13"]
[White "Kopriva, Martin"]
[Black "Bures, Jaroslav"]
[Result "0-1"]
[Annotator "TA"]
[ECO "B81"]
[WhiteElo "2159"]
[BlackElo "2418"]
[PlyCount "44"]
[EventDate "2024.07.16"]
[EventType "swiss"]
[EventCountry "CZE"]
[SourceTitle "playchess.com"]
[Source "ChessBase"]
[SourceQuality "1"]
[TimeControl "1200+10"]

{[%evp 16,44,29,25,38,44,68,17,14,-20,-52,-33,0,-118,-117,-187,-180,-263,-156,-602,-606,-675,-302,-290,-199,-491,-491,-847,-843,-29988,-29989]} 1. e4 {[%emt 0:00:04]} c5 {[%emt 0:00:07]} 2. Nf3 {[%emt 0:00:03]} e6 {[%emt 0:00:04]} 3. d4 {[%emt 0:00:04]} cxd4 {[%emt 0:00:04]} 4. Nxd4 {[%emt 0:00:03]} Nf6 {[%emt 0:00:01]} 5. Nc3 {[%emt 0:00:04]} d6 {[%emt 0:00:28]} 6. g4 {[%emt 0:03:03]} h6 {[%emt 0:00:01]} 7. Rg1 {[%emt 0:00:12]} Nc6 {[%emt 0:00:17]} 8. h4 {[%emt 0:01:26]} d5 {[%emt 0:00:13]} 9. exd5 {[%emt 0:02:57]} Nxd5 {[%emt 0:00:03]} 10. Nxd5 {[%emt 0:00:46]} exd5 {[%emt 0:02:11]} 11. Qe2+ {[%emt 0:00:37]} (11. Be3 $1 $14) 11... Be7 $11 {[%emt 0:00:39] The position is equal.} 12. Nf5 {[%emt 0:00:48]} Bxf5 {[%emt 0:01:22]} 13. gxf5 {[%emt 0:00:02][%cal Of5f6]} Qc7 {[%emt 0:00:03]} (13... Kf8 {is interesting.} 14. Bf4 Qa5+ 15. Bd2 Qb6) 14. c3 {[%emt 0:06:49] Dodges Nd4} (14. Rxg7 $2 Nd4 15. Qg4 Qe5+ (15... Nxc2+ 16. Kd1 $17) 16. Kd1 Bf8 $19) (14. f6 $1 $11 {remains equal.} gxf6 15. Be3) 14... O-O-O $17 {[%emt 0:00:09] [#] ...Rhe8 is the strong threat.} 15. Bh3 {[%emt 0:00:22]} (15. Bd2 $17 {might work better.}) 15... Bf6 $19 {[%emt 0:01:00][%cal Od5d4] aiming for ...d4!} (15... Bxh4 16. f6+ Kb8 17. fxg7 $17) 16. Kf1 {[%emt 0:00:45]} (16. Be3 $142) 16... d4 {[%emt 0:00:32]} (16... Bxh4 $2 17. f6+ Kb8 18. fxg7 $18 (18. Rxg7 Bxf6 19. Rg4 Ka8 $17)) (16... Rhe8 $19 17. Qh5 d4) 17. cxd4 $2 {[%emt 0:00:22] Now White is beyond hope.} (17. Qc4 $17) 17... Nxd4 {[%emt 0:00:30]} (17... Bxh4 18. f6+ (18. Rxg7 Nxd4 19. Qe3 Qc4+ 20. Kg2 Qc6+ 21. Kf1 Nc2 $19) 18... Kb8 19. fxg7 $16 (19. Rxg7 $2 Nxd4 20. Qg4 Bg5 $19)) 18. Qg4 {[%emt 0:00:44]} Nc2 {[%emt 0:01:17]} (18... h5 $142 19. Qg3 Qc4+ 20. Kg2 Qc6+ (20... Ne2 $2 21. Qf3 $19) 21. Kf1 Nc2) 19. Rb1 {[%emt 0:01:17]} Rd4 {[%emt 0:00:02] [#] Against Bf4. And now ...Qc4+ would win.} 20. Qf3 $2 {[%emt 0:00:10]} (20. Qe2 {was the only chance.}) 20... Re8 {[%emt 0:01:47] White must now prevent ...Qc4+.} (20... Bxh4 $2 21. f6+ (21. Rxg7 Kb8 $17) 21... Kb8 22. fxg7 (22. Rxg7 $2 Qd6 $19) 22... Qc4+ 23. Kg2 $18) (20... Rxh4 21. Rg4 Nd4 22. Qd3 Rxg4 23. Bxg4 $17) 21. Rxg7 {[%emt 0:01:08]} (21. Be3 $142 Rd3 (21... Rxh4 $2 22. Bxa7 Ra4 23. Rc1 $19) 22. Rg3 Nxe3+ (22... Bxh4 $2 23. f6+ Kb8 24. Bf4 $18) 23. fxe3 Rdxe3 (23... Bxh4 $2 24. f6+ Kb8 25. Rxg7 $19) 24. Qxe3 Rxe3 25. Rxe3 Qc4+ (25... Bxh4 26. f6+ Kb8 27. Re8+) (25... Qf4+ $2 26. Ke2 $19) 26. Re2 Qf4+ (26... Qxa2 27. Rc1+ Kd7 28. Rd2+ Ke7 29. Rc7+ Kf8 30. Rc8+ Ke7 31. Rc7+ Kf8 32. Rc8+ Ke7 33. Rc7+ $11) 27. Kg2) 21... Qc4+ {[%emt 0:06:46]} ({Stronger than} 21... Rd1+ 22. Qxd1 Qc6 23. Bg2 (23. Rxf7 $2 Qh1#) 23... Qc4+ 24. Kg1 Re1+ (24... Bxg7 $2 {perishes.} 25. b3 $18) 25. Qxe1 Nxe1 26. Rg8+ Kd7 27. Bxh6 $14) 22. Kg2 {[%emt 0:00:11]} Ne1+ {[%emt 0:00:03] Weighted Error Value: White=1.80/Black=0.59.  Loses game:     	White=1     	---        Mistake:       	White=6     	Black=1      Inaccurate:     	White=2     	Black=1      OK:         	---       	Black=2      Best:        	---       	Black=4} 0-1